fUSD/lending_fUSD_20260203
["ID","MTS","AMOUNT","RATE_DAILY","PERIOD"]
[404446269,1770147046045,-369.98194845,0.00017826,2]
[404446270,1770147046054,-1000.0,0.00017843,2]
[404446271,1770147046063,-150.0,0.00017848,2]
[404446272,1770147046073,-1000.0,0.00017853,2]
[404446273,1770147046082,-200.0,0.00017855,2]
[404446274,1770147046091,-1000.0,0.00017855,2]
[404446275,1770147046100,-200.0,0.00017856,2]
[404446276,1770147046110,-983.42551089,0.00017863,2]
[404446277,1770147046119,-1000.0,0.00017867,7]
[404446278,1770147046128,-1000.0,0.00017869,2]
[404446279,1770147046137,-157.95285948,0.00017873,2]
[404446280,1770147046148,-1000.0,0.00017881,2]
[404446281,1770147046157,-25000.0,0.00017891,3]
[404446282,1770147046166,-10140.7131,0.00017897,2]
[404446283,1770147046235,-33292.3487,0.00017897,2]
[404446284,1770147046245,-8433.8052,0.00017897,2]
[404446285,1770147046255,-1000.0,0.00017897,2]
[404446286,1770147046264,-12332.90456169,0.00017897,2]
[404446287,1770147046274,-6480.91079444,0.00017897,2]
[404446288,1770147046283,-10000.0,0.00017898,2]
[404446289,1770147046292,-500.0,0.00017899,2]
[404446290,1770147046302,-93790.61614988,0.000179,2]
[404446291,1770147046311,-500.0,0.000179,2]
[404446292,1770147046320,-3864.46995742,0.000179,3]
[404446293,1770147046329,-25000.0,0.000179,3]
[404446294,1770147046338,-1221.0,0.000179,6]
[404446295,1770147046347,-1439.74766545,0.000179,2]
[404446296,1770147046356,-10562.78687387,0.000179,2]
[404446297,1770147046365,-18723.0,0.000179,2]
[404446298,1770147046377,-150.0,0.00017904,2]
[404446299,1770147046386,-1000.0,0.00017912,2]
[404446300,1770147046395,-1000.0,0.00017915,2]
[404446301,1770147046405,-1000.0,0.00017928,2]
[404446302,1770147046414,-150.0,0.00017929,2]
[404446303,1770147046423,-252.85,0.00017936,2]
[404446304,1770147046432,-150.0,0.0001794,2]
[404446305,1770147046444,-1000.0,0.00017942,2]
[404446306,1770147046453,-150.0,0.00017952,2]
[404446307,1770147046463,-1000.0,0.00017955,2]
[404446308,1770147046472,-252.85,0.00017958,2]
[404446309,1770147046481,-150.0,0.00017962,2]
[404446310,1770147046490,-392.10693279,0.00017963,2]
[404446311,1770147046502,-1000.0,0.00017964,2]
[404446312,1770147046511,-348.38803811,0.00017967,2]
[404446313,1770147046520,-176.58450865,0.00017967,2]
[404446314,1770147046529,-400.7491143,0.0001797,2]
[404446316,1770147046538,-500.28724876,0.00017973,2]
[404446317,1770147046547,-152.0,0.00017973,4]
[404446318,1770147046556,-1000.0,0.00017975,2]
[404446319,1770147046565,-252.85,0.00017979,2]
[404446320,1770147046575,-930.52052436,0.00017982,2]
[404446321,1770147046584,-19474.6829835,0.0001799,3]
[404446322,1770147046594,-151.0,0.00017994,2]
[404446323,1770147046604,-325590.8785854,0.00017997,2]
[404446324,1770147046613,-151.0,0.00017997,2]
[404446326,1770147046622,-948.911815,0.00017997,2]
[404446327,1770147046631,-151.0,0.00017997,2]
[404446328,1770147046640,-948.911815,0.00017997,2]
[404446329,1770147046649,-151.0,0.00017997,2]
[404446330,1770147046658,-948.911815,0.00017997,2]
[404446331,1770147046667,-948.911815,0.00017997,2]
[404446332,1770147046676,-151.0,0.00017997,2]
[404446333,1770147046685,-151.0,0.00017997,2]
[404446334,1770147046694,-1933.406863,0.00017997,2]
[404446335,1770147046703,-1933.406863,0.00017997,2]
[404446336,1770147046712,-1933.406863,0.00017997,2]
[404446337,1770147046720,-1933.406863,0.00017997,2]
[404446338,1770147046729,-151.0,0.00017997,2]
[404446339,1770147046738,-151.0,0.00017997,2]
[404446340,1770147046750,-151.0,0.00017997,2]
[404446341,1770147046759,-1004.24833386,0.00017999,5]
[404446342,1770147046769,-155.0,0.00017999,2]
[404446343,1770147046779,-500.0,0.00017999,2]
[404446344,1770147046788,-500.0,0.00017999,2]
[404446345,1770147046797,-500.0,0.00017999,2]
[404446346,1770147046806,-500.0,0.00017999,2]
[404446347,1770147046815,-327.84001672,0.00017999,2]
[404446348,1770147046824,-300.0,0.00017999,2]
[404446349,1770147046833,-300.0,0.00017999,2]
[404446350,1770147046842,-300.0,0.00017999,2]
[404446351,1770147046852,-666.0,0.00017999,2]
[404446352,1770147046861,-2707770.05436668,0.00018,2]
[404446353,1770147046898,-315.041611,0.00018,2]
[404446354,1770147046909,-335.38,0.00018,2]
[404446355,1770147046922,-327.84001672,0.00018,2]
[404446356,1770147046934,-4597.43706082,0.00018,2]
[404446357,1770147047187,-12000.0,0.00018,2]
[404446358,1770147047701,-1348.01360576,0.000124,2]
[404446359,1770147047711,-186832.24703419,0.00018,2]
[404446360,1770147056104,10000.01,6.858e-05,2]
[404446361,1770147056136,10000.01,6.858e-05,2]
[404446362,1770147056167,10000.01,6.858e-05,2]
[404446363,1770147056197,10000.01,6.858e-05,2]
[404446364,1770147056232,10000.01,6.858e-05,2]
[404446365,1770147056265,10000.01,6.858e-05,2]
[404446366,1770147056297,10000.01,6.858e-05,2]
[404446367,1770147056327,10000.01,6.858e-05,2]
[404446368,1770147056361,10000.01,6.858e-05,2]
[404446369,1770147056394,10000.01,6.858e-05,2]
[404446371,1770147081906,1004.24833386,6.857e-05,2]
[404446373,1770147093401,3682.72,6.721e-05,2]
[404446374,1770147095585,396.003,6.721e-05,2]
[404446375,1770147105015,300.0,6.7e-05,2]
[404446376,1770147107109,700.0,6.8e-05,2]
[404446377,1770147112815,-1684.0,6.858e-05,2]
[404446380,1770147129650,151.0,6.855e-05,2]
[404446381,1770147130145,151.0,6.855e-05,2]
[404446384,1770147156041,-27525.0,6.858e-05,2]
[404446390,1770147241504,300.0,6.857e-05,2]
[404446391,1770147301486,300.0,6.857e-05,2]
[404446392,1770147301528,1200.0,6.857e-05,2]
[404446398,1770147338866,-3359.92336891,6.858e-05,2]
[404446399,1770147339394,-1745.7376326,6.858e-05,2]
[404446400,1770147361510,300.0,6.857e-05,2]
[404446402,1770147375784,7900.01,6.758e-05,2]
[404446403,1770147375812,10000.01,6.758e-05,2]
[404446404,1770147375841,10000.01,6.758e-05,2]
[404446405,1770147375868,10000.01,6.758e-05,2]
[404446406,1770147375895,10000.01,6.758e-05,2]
[404446407,1770147375925,10000.01,6.758e-05,2]
[404446408,1770147375956,10000.01,6.758e-05,2]
[404446409,1770147375986,10000.01,6.758e-05,2]
[404446410,1770147376013,10000.01,6.758e-05,2]
[404446411,1770147376041,5000.01,6.758e-05,2]
[404446412,1770147376071,5000.01,6.758e-05,2]
[404446413,1770147376097,5000.01,6.758e-05,2]
[404446414,1770147376126,5000.01,6.758e-05,2]
[404446415,1770147376153,5000.01,6.758e-05,2]
[404446416,1770147376183,5000.01,6.758e-05,2]
[404446417,1770147376211,5000.01,6.758e-05,2]
[404446418,1770147376243,5000.01,6.758e-05,2]
[404446419,1770147376273,5000.01,6.758e-05,2]
[404446420,1770147376301,10000.01,6.758e-05,2]
[404446421,1770147386575,-3140.15909214,6.758e-05,2]
[404446422,1770147386669,-5000.01,6.758e-05,2]
[404446423,1770147386795,-5000.01,6.758e-05,2]
[404446424,1770147386942,-5000.01,6.758e-05,2]
[404446425,1770147387069,-5000.01,6.758e-05,2]
[404446426,1770147387190,-5000.01,6.758e-05,2]
[404446427,1770147387356,-5000.01,6.758e-05,2]
[404446428,1770147387460,-5000.01,6.758e-05,2]
[404446429,1770147409416,800.0,6.7e-05,2]
[404446437,1770147500351,476.46620513,6.748e-05,2]
[404446438,1770147541560,300.0,6.757e-05,2]
[404446439,1770147542558,150.0,6.757e-05,2]
[404446440,1770147544416,300.0,6.757e-05,2]
[404446444,1770147601518,1200.0,6.757e-05,2]
[404446445,1770147601573,300.0,6.757e-05,2]
[404446446,1770147606071,208.0,6.758e-05,2]
[404446450,1770147661859,300.0,6.757e-05,2]
[404446469,1770147693435,316.802,6.623e-05,2]
[404446470,1770147693475,2946.176,6.623e-05,2]
[404446471,1770147697177,2702.56579487,6.658e-05,2]
[404446472,1770147697205,10000.01,6.658e-05,2]
[404446473,1770147697234,10000.01,6.658e-05,2]
[404446474,1770147697264,10000.01,6.658e-05,2]
[404446475,1770147697556,10000.01,6.658e-05,2]
[404446476,1770147697586,10000.01,6.658e-05,2]
[404446477,1770147697617,10000.01,6.658e-05,2]
[404446478,1770147697645,10000.01,6.658e-05,2]
[404446479,1770147697671,10000.01,6.658e-05,2]
[404446480,1770147697698,10000.01,6.658e-05,2]
[404446481,1770147697725,5000.01,6.658e-05,2]
[404446482,1770147697751,5000.01,6.658e-05,2]
[404446483,1770147697777,5000.01,6.658e-05,2]
[404446484,1770147697804,5000.01,6.658e-05,2]
[404446485,1770147697830,5000.01,6.658e-05,2]
[404446488,1770147730009,151.0,6.655e-05,2]
[404446489,1770147730518,151.0,6.655e-05,2]
[404446490,1770147781476,300.0,6.657e-05,2]
[404446503,1770147841551,300.0,6.657e-05,2]
[404446510,1770147901971,300.0,6.657e-05,2]
[404446511,1770147902012,300.0,6.657e-05,2]
[404446512,1770147902053,1200.0,6.657e-05,2]
[404446525,1770148000943,7298.01,6.558e-05,2]
[404446526,1770148000972,10000.01,6.558e-05,2]
[404446527,1770148000999,10000.01,6.558e-05,2]
[404446528,1770148001026,10000.01,6.558e-05,2]
[404446529,1770148001053,10000.01,6.558e-05,2]
[404446530,1770148001080,10000.01,6.558e-05,2]
[404446531,1770148001106,10000.01,6.558e-05,2]
[404446532,1770148001133,10000.01,6.558e-05,2]
[404446533,1770148001159,10000.01,6.558e-05,2]
[404446534,1770148001184,5000.01,6.558e-05,2]
[404446535,1770148001210,10000.01,6.558e-05,2]
[404446536,1770148001234,5000.01,6.558e-05,2]
[404446537,1770148001258,5000.01,6.558e-05,2]
[404446538,1770148001283,5000.01,6.558e-05,2]
[404446539,1770148001307,5000.01,6.558e-05,2]
[404446540,1770148001331,5000.01,6.558e-05,2]
[404446541,1770148001355,5000.01,6.558e-05,2]
[404446542,1770148001380,5000.01,6.558e-05,2]
[404446543,1770148001407,5000.01,6.558e-05,2]
[404446544,1770148009416,-5000.01,6.558e-05,2]
[404446545,1770148009519,-5000.01,6.558e-05,2]
[404446546,1770148009623,-5000.01,6.558e-05,2]
[404446547,1770148009757,-5000.01,6.558e-05,2]
[404446548,1770148021574,300.0,6.557e-05,2]
[404446566,1770148201737,202.0,6.557e-05,2]
[404446567,1770148201788,1200.0,6.557e-05,2]
[404446568,1770148207208,207.0,6.558e-05,2]
[404446594,1770148232037,-284.4576,6.558e-05,2]
[404446596,1770148232087,-8027.97513753,6.558e-05,2]
[404446597,1770148232143,-7137.16596989,6.558e-05,2]
[404446598,1770148232200,-3753.57116,6.558e-05,2]
[404446693,1770148238116,-485.4300017,6.558e-05,2]
[404446695,1770148238170,-2961716.56128087,6.558e-05,2]
[404446696,1770148238182,-6000.89731925,6.558e-05,2]
[404446697,1770148238228,-2224.17408572,6.558e-05,2]
[404446698,1770148238337,-308.43884679,6.558e-05,2]
[404446703,1770148240258,-136.04114688,6.558e-05,2]
[404446704,1770148240287,-135931.64345487,6.558e-05,2]
[404446705,1770148240596,-211695.4139965,6.558e-05,2]
[404446706,1770148240606,-310.59740914,6.619e-05,2]
[404446707,1770148240616,-10687.56197616,6.619e-05,2]
[404446708,1770148240626,-1800.0,6.7e-05,2]
[404446709,1770148240636,-235.78,6.777e-05,2]
[404446710,1770148240645,-3600.0,6.8e-05,2]
[404446711,1770148240656,-1000.0,6.858e-05,2]
[404446712,1770148240666,-215.41950212,6.858e-05,2]
[404446713,1770148240675,-5400.0,6.9e-05,2]
[404446714,1770148240685,-7200.0,7e-05,2]
[404446715,1770148240697,-1680.0,7.213e-05,2]
[404446716,1770148240710,-250.0,7.214e-05,2]
[404446717,1770148240723,-266.78796498,7.214e-05,2]
[404446718,1770148240735,-193.0,7.214e-05,2]
[404446719,1770148240745,-216.69,7.253e-05,2]
[404446720,1770148240755,-937.44,7.4e-05,2]
[404446721,1770148240764,-150.99,7.4e-05,2]
[404446722,1770148240774,-343.78,7.4e-05,2]
[404446723,1770148240784,-9999.99,7.4e-05,2]
[404446724,1770148240794,-19032.67,7.4e-05,2]
[404446725,1770148240805,-9999.99,7.4e-05,2]
[404446726,1770148240814,-999.99,7.4e-05,2]
[404446727,1770148240824,-9999.99,7.4e-05,2]
[404446728,1770148240835,-299.99,7.4e-05,2]
[404446729,1770148240845,-9999.99,7.4e-05,2]
[404446730,1770148240855,-150.99,7.4e-05,2]
[404446731,1770148240864,-9999.99,7.4e-05,2]
[404446732,1770148240874,-4999.99,7.433e-05,2]
[404446733,1770148240884,-2351.0,7.934e-05,2]
[404446734,1770148240894,-150.01111538,8.086e-05,2]
[404446735,1770148240903,-4383.48,8.14e-05,2]
[404446736,1770148240913,-4383.48,8.155e-05,2]
[404446737,1770148240923,-4383.48,8.17e-05,2]
[404446738,1770148240934,-556.32581,8.178e-05,2]
[404446739,1770148240943,-4383.48,8.185e-05,2]
[404446740,1770148240953,-4383.48,8.2e-05,2]
[404446741,1770148240963,-4383.48,8.215e-05,2]
[404446742,1770148240978,-160.3,8.219e-05,2]
[404446743,1770148240987,-354.93,8.219e-05,2]
[404446744,1770148240998,-500.0,8.219e-05,2]
[404446745,1770148241009,-500.0,8.219e-05,2]
[404446746,1770148241018,-500.0,8.219e-05,2]
[404446747,1770148241028,-500.0,8.219e-05,2]
[404446748,1770148241038,-500.0,8.219e-05,2]
[404446749,1770148241047,-500.0,8.219e-05,2]
[404446750,1770148241056,-500.0,8.219e-05,2]
[404446751,1770148241065,-500.0,8.219e-05,2]
[404446752,1770148241076,-447.15250693,8.219e-05,2]
[404446753,1770148241088,-500.0,8.219e-05,2]
[404446754,1770148241098,-150.0,8.219e-05,2]
[404446755,1770148241108,-500.0,8.219e-05,2]
[404446756,1770148241118,-4383.48,8.23e-05,2]
[404446757,1770148241128,-4383.48,8.245e-05,2]
[404446758,1770148241138,-4383.48,8.26e-05,2]
[404446759,1770148241148,-4383.48,8.275e-05,2]
[404446760,1770148241160,-1429.0,8.277e-05,2]
[404446761,1770148241171,-4383.48,8.29e-05,2]
[404446762,1770148241182,-4383.48,8.305e-05,2]
[404446763,1770148241192,-4383.48,8.32e-05,2]
[404446764,1770148241201,-4383.48,8.335e-05,2]
[404446765,1770148241211,-4383.48,8.35e-05,2]
[404446766,1770148241220,-4383.48,8.365e-05,2]
[404446767,1770148241230,-4383.48,8.38e-05,2]
[404446768,1770148241241,-4383.48,8.395e-05,2]
[404446769,1770148241251,-4383.48,8.41e-05,2]
[404446770,1770148241260,-4383.48,8.425e-05,2]
[404446771,1770148241269,-354.93,8.493e-05,2]
[404446772,1770148241279,-500.0,8.493e-05,2]
[404446773,1770148241290,-151.74,8.598e-05,2]
[404446774,1770148241299,-556.0,8.623e-05,2]
[404446775,1770148241309,-154.18,8.662e-05,2]
[404446776,1770148241319,-250.0,8.665e-05,2]
[404446777,1770148241328,-2777.0,8.727e-05,2]
[404446778,1770148241343,-354.93,8.767e-05,2]
[404446779,1770148241353,-500.0,8.767e-05,2]
[404446780,1770148241363,-417.0,8.82e-05,2]
[404446781,1770148241372,-695.0,9.014e-05,2]
[404446782,1770148241382,-914.0,9.032e-05,2]
[404446783,1770148241391,-354.93,9.041e-05,2]
[404446784,1770148241401,-154.18,9.281e-05,2]
[404446785,1770148241411,-354.93,9.315e-05,2]
[404446786,1770148241420,-150.01111538,9.461e-05,2]
[404446787,1770148241430,-674.0,9.522e-05,2]
[404446788,1770148241440,-354.93,9.589e-05,2]
[404446789,1770148241450,-190.0,9.809e-05,2]
[404446790,1770148241460,-62456.39,9.845e-05,2]
[404446791,1770148241470,-354.93,9.863e-05,2]
[404446792,1770148241479,-154.18,9.9e-05,2]
[404446793,1770148241489,-151.0,0.0001,2]
[404446794,1770148241499,-500.0,0.0001,2]
[404446795,1770148241508,-151.0,0.0001,2]
[404446796,1770148241517,-200.0,0.0001,2]
[404446797,1770148241527,-500.0,0.0001,2]
[404446798,1770148241537,-151.0,0.0001,2]
[404446799,1770148241546,-500.0,0.0001,2]
[404446800,1770148241556,-151.0,0.0001,2]
[404446801,1770148241565,-500.0,0.0001,2]
[404446802,1770148241575,-151.0,0.0001,2]
[404446803,1770148241586,-500.0,0.0001,2]
[404446804,1770148241595,-151.0,0.0001,2]
[404446805,1770148241604,-500.0,0.0001,2]
[404446806,1770148241614,-151.0,0.0001,2]
[404446807,1770148241624,-500.0,0.0001,2]
[404446808,1770148241633,-151.0,0.0001,2]
[404446809,1770148241643,-500.0,0.0001,2]
[404446810,1770148241654,-151.0,0.0001,2]
[404446811,1770148241663,-500.0,0.0001,2]
[404446812,1770148241673,-151.0,0.0001,2]
[404446813,1770148241684,-500.0,0.0001,2]
[404446814,1770148241693,-151.0,0.0001,2]
[404446815,1770148241704,-500.0,0.0001,2]
[404446816,1770148241721,-151.0,0.0001,2]
[404446817,1770148241731,-151.0,0.0001,2]
[404446818,1770148241740,-151.0,0.0001,2]
[404446819,1770148241751,-151.0,0.0001,2]
[404446820,1770148241760,-151.0,0.0001,2]
[404446821,1770148241769,-151.0,0.0001,2]
[404446822,1770148241778,-151.0,0.0001,2]
[404446823,1770148241788,-151.0,0.0001,2]
[404446824,1770148241797,-151.0,0.0001,2]
[404446825,1770148241807,-151.0,0.0001,2]
[404446826,1770148241816,-151.0,0.0001,2]
[404446827,1770148241826,-151.0,0.0001,2]
[404446828,1770148241837,-151.0,0.0001,2]
[404446829,1770148241846,-151.0,0.0001,2]
[404446830,1770148241856,-151.0,0.0001,2]
[404446831,1770148241866,-151.0,0.0001,2]
[404446832,1770148241875,-151.0,0.0001,2]
[404446833,1770148241885,-151.0,0.0001,2]
[404446834,1770148241894,-151.0,0.0001,2]
[404446835,1770148241904,-151.0,0.0001,2]
[404446836,1770148241914,-500.0,0.0001,2]
[404446837,1770148241924,-500.0,0.0001,2]
[404446838,1770148241935,-500.0,0.0001,2]
[404446839,1770148241951,-500.0,0.0001,2]
[404446840,1770148241961,-500.0,0.0001,2]
[404446841,1770148241972,-500.0,0.0001,2]
[404446842,1770148241982,-500.0,0.0001,2]
[404446843,1770148241992,-500.0,0.0001,2]
[404446844,1770148242001,-500.0,0.0001,2]
[404446845,1770148242014,-500.0,0.0001,2]
[404446846,1770148242025,-500.0,0.0001,2]
[404446847,1770148242034,-500.0,0.0001,2]
[404446848,1770148242044,-200.0,0.0001,2]
[404446849,1770148242055,-376.25114711,0.0001,2]
[404446850,1770148242064,-1295.1230245,0.0001,2]
[404446851,1770148242073,-1295.1230245,0.0001,2]
[404446852,1770148242083,-379.28,0.00010071,2]
[404446853,1770148242093,-354.93,0.00010137,2]
[404446854,1770148242411,-354.93,0.00010411,2]
[404446855,1770148242421,-154.18,0.00010518,2]
[404446856,1770148242431,-200.0,0.00010548,2]
[404446857,1770148242444,-500.0,0.00010548,2]
[404446858,1770148242454,-200.0,0.00010548,2]
[404446859,1770148242464,-354.93,0.00010685,2]
[404446860,1770148242473,-150.01111538,0.00010835,2]
[404446861,1770148242483,-151.0,0.00010876,2]
[404446862,1770148242493,-258.51,0.00010918,2]
[404446863,1770148242503,-500.0,0.00010959,2]
[404446864,1770148242512,-354.93,0.00010959,2]
[404446865,1770148242522,-500.0,0.00011096,2]
[404446866,1770148242532,-13061.31188108,0.00011099,2]
[404446867,1770148242544,-13061.31188108,0.00011099,2]
[404446868,1770148242554,-13061.31188108,0.00011099,2]
[404446869,1770148242563,-13061.31188108,0.00011099,2]
[404446870,1770148242573,-154.18,0.00011137,2]
[404446871,1770148242584,-15125.73,0.00011233,2]
[404446872,1770148242595,-354.93,0.00011233,2]
[404446873,1770148242604,-500.0,0.00011274,2]
[404446874,1770148242613,-150.0,0.00011393,2]
[404446875,1770148242623,-354.93,0.00011507,2]
[404446876,1770148242635,-2252.9,0.00011524,2]
[404446877,1770148242645,-495.96223362,0.00011556,2]
[404446878,1770148242655,-1308.8521814,0.00011556,2]
[404446879,1770148242665,-2308.9703912,0.00011556,2]
[404446880,1770148242675,-13061.31188108,0.00011577,2]
[404446881,1770148242685,-154.18,0.00011756,2]
[404446882,1770148242696,-354.93,0.00011781,2]
[404446883,1770148242708,-354.93,0.00012055,2]
[404446884,1770148242718,-150.01111538,0.00012209,2]
[404446885,1770148242728,-10687.56197615,0.0001221,2]
[404446886,1770148242741,-376.25114709,0.0001221,2]
[404446887,1770148242751,-354.93,0.00012328,2]
[404446888,1770148242760,-154.18,0.00012374,2]
[404446889,1770148242771,-354.93,0.00012602,2]
[404446890,1770148242781,-13061.31188108,0.00012842,2]
[404446891,1770148242791,-354.93,0.00012876,2]
[404446892,1770148242800,-154.18,0.00012993,2]
[404446893,1770148242812,-354.93,0.0001315,2]
[404446894,1770148242821,-354.93,0.00013424,2]
[404446895,1770148242831,-322.6107,0.00013505,2]
[404446896,1770148242842,-160.0,0.00013505,2]
[404446897,1770148242851,-200.0,0.00013505,2]
[404446898,1770148242860,-500.0,0.00013505,2]
[404446899,1770148242870,-721.12765534,0.00013505,2]
[404446900,1770148242881,-500.0,0.00013505,2]
[404446901,1770148242889,-500.0,0.00013505,2]
[404446902,1770148242899,-500.0,0.00013505,2]
[404446904,1770148242909,-500.0,0.00013505,2]
[404446906,1770148242919,-500.0,0.00013505,2]
[404446908,1770148242930,-500.0,0.00013505,2]
[404446910,1770148242940,-500.0,0.00013505,2]
[404446912,1770148242949,-500.0,0.00013505,2]
[404446914,1770148242959,-174.61919141,0.00013505,2]
[404446916,1770148242968,-500.0,0.00013505,2]
[404446918,1770148242977,-500.0,0.00013505,2]
[404446919,1770148242987,-209.40437684,0.00013505,2]
[404446920,1770148242996,-578.20924309,0.00013505,2]
[404446921,1770148243005,-209.40437684,0.00013505,2]
[404446922,1770148243016,-500.0,0.00013505,2]
[404446923,1770148243033,-642.81998071,0.00013505,2]
[404446924,1770148243045,-209.40437684,0.00013505,2]
[404446925,1770148243055,-217.15233878,0.0001356,2]
[404446926,1770148243065,-150.01111538,0.00013584,2]
[404446927,1770148243075,-225.18697532,0.00013615,2]
[404446928,1770148243087,-233.51889341,0.0001367,2]
[404446929,1770148243096,-500.0,0.00013698,2]
[404446930,1770148243106,-501.81901913,0.00013698,2]
[404446931,1770148243115,-500.0,0.00013698,2]
[404446932,1770148243125,-500.0,0.00013698,2]
[404446933,1770148243134,-500.0,0.00013698,2]
[404446934,1770148243144,-500.0,0.00013698,2]
[404446935,1770148243154,-500.0,0.00013698,2]
[404446936,1770148243163,-500.0,0.00013698,2]
[404446937,1770148243174,-500.0,0.00013698,2]
[404446938,1770148243183,-500.0,0.00013698,2]
[404446939,1770148243192,-438.97921379,0.00013698,2]
[404446940,1770148243201,-500.0,0.00013698,2]
[404446941,1770148243210,-500.0,0.00013698,2]
[404446942,1770148243219,-500.0,0.00013698,2]
[404446943,1770148243229,-199.38200897,0.00013698,2]
[404446944,1770148243239,-500.0,0.00013698,2]
[404446945,1770148243248,-500.0,0.00013698,2]
[404446946,1770148243257,-555.66,0.00013698,2]
[404446947,1770148243267,-500.0,0.00013698,2]
[404446948,1770148243276,-355.0,0.00013698,2]
[404446949,1770148243287,-500.0,0.00013698,2]
[404446950,1770148243297,-500.0,0.00013698,2]
[404446951,1770148243307,-500.0,0.00013698,2]
[404446952,1770148243317,-500.0,0.00013698,2]
[404446953,1770148243327,-500.0,0.00013698,2]
[404446954,1770148243338,-500.0,0.00013698,2]
[404446955,1770148243348,-500.0,0.00013698,2]
[404446956,1770148243357,-500.0,0.00013698,2]
[404446957,1770148243366,-500.0,0.00013698,2]
[404446958,1770148243376,-500.0,0.00013698,2]
[404446959,1770148243386,-558.54304702,0.00013698,2]
[404446960,1770148243395,-500.0,0.00013698,2]
[404446961,1770148243406,-500.0,0.00013698,2]
[404446962,1770148243416,-500.0,0.00013698,2]
[404446963,1770148243426,-500.0,0.00013698,2]
[404446964,1770148243435,-500.0,0.00013698,2]
[404446965,1770148243445,-500.0,0.00013698,2]
[404446966,1770148243454,-327.84001672,0.00013698,2]
[404446967,1770148243464,-500.0,0.00013698,2]
[404446968,1770148243473,-500.0,0.00013698,2]
[404446969,1770148243483,-500.0,0.00013698,2]
[404446970,1770148243492,-12281.17,0.00013699,2]
[404446971,1770148243503,-500.0,0.00013699,2]
[404446972,1770148243512,-168.05,0.00013699,2]
[404446973,1770148243522,-5709.02,0.00013699,2]
[404446974,1770148243532,-242.15909246,0.00013725,2]
[404446975,1770148243542,-251.11897888,0.0001378,2]
[404446976,1770148243551,-260.4103811,0.00013835,2]
[404446977,1770148243560,-5498.21,0.00013868,2]
[404446978,1770148243569,-270.0455652,0.0001389,2]
[404446979,1770148243579,-280.03725112,0.00013945,2]
[404446980,1770148243589,-290.39862941,0.00014,2]
[404446981,1770148243599,-500.0,0.00014027,2]
[404446982,1770148243608,-200.0,0.00014053,2]
[404446983,1770148243618,-181.08010149,0.00014053,2]
[404446984,1770148243629,-209.40437685,0.00014053,2]
[404446985,1770148243639,-209.40437685,0.00014053,2]
[404446986,1770148243649,-301.1433787,0.00014055,2]
[404446987,1770148243659,-160.0,0.00014104,2]
[404446988,1770148243669,-13061.31188108,0.00014106,2]
[404446989,1770148243679,-5709.02,0.00014384,2]
[404446990,1770148243690,-9999.99,0.00014504,2]
[404446991,1770148243699,-25962.17,0.00014504,2]
[404446992,1770148243712,-1294.06,0.00014504,2]
[404446993,1770148243721,-150.0,0.00014515,7]
[404446994,1770148243731,-686.74889,0.00014515,7]
[404446995,1770148243740,-1223.497781,0.00014515,7]
[404446997,1770148243750,-1760.246672,0.00014515,7]
[404446998,1770148243760,-2296.995563,0.00014515,7]
[404447000,1770148243769,-2833.744454,0.00014515,7]
[404447001,1770148243779,-3370.493345,0.00014515,7]
[404447002,1770148243790,-3907.242236,0.00014515,7]